fUSD/lending_fUSD_20250404
["ID","MTS","AMOUNT","RATE_DAILY","PERIOD"]
[357115591,1743751838992,-150.34,0.0005399,120]
[357115593,1743751839001,-150.34,0.0005399,120]
[357115595,1743751839010,-736.51384024,0.00054,58]
[357115597,1743751839019,-513.91230894,0.00054,57]
[357115599,1743751839028,-1000000.0,0.00054,120]
[357115601,1743751839037,-487804.48959618,0.00054,120]
[357115603,1743751839049,-512195.51040382,0.00054,120]
[357115605,1743751839058,-135000.0,0.00054,120]
[357115607,1743751839067,-148394.12537513,0.00054,120]
[357115609,1743751839078,-371.22111104,0.00054,120]
[357115613,1743751839101,-98659.59824099,0.00054,120]
[357115615,1743751839113,-78373.82841353,0.00054,120]
[357115617,1743751839124,-832.89908772,0.00054,120]
[357115619,1743751839135,-88143.68939692,0.00054,120]
[357115621,1743751839146,-75824.35431133,0.00054,120]
[357115809,1743751840607,-1352.69839241,0.00047427,15]
[357115812,1743751840616,-198223.43710099,0.00054,120]
[357115854,1743751840828,-772.52049996,0.00054,120]
[357115857,1743751840840,-256.20750001,0.00054,120]
[357115861,1743751840852,-20898.99921264,0.00054,120]
[357115864,1743751840863,-2342.47585922,0.00054,120]
[357115882,1743751840945,-5300.15910941,0.00054,120]
[357115996,1743751843562,-151.0,0.00052,120]
[357115997,1743751843571,-151.0,0.00052,120]
[357115998,1743751843581,-1564.55401414,0.00054,120]
[357115999,1743751843592,-3504.14654284,0.00054,120]
[357116000,1743751843603,-295.51106762,0.00054,120]
[357116001,1743751843615,-294.49025174,0.00054,120]
[357116002,1743751843968,-1100.0,0.00054,120]
[357116003,1743751843981,-854.57542148,0.00054,120]
[357116004,1743751843996,-14505.43490065,0.00054,120]
[357116005,1743751844007,-4656.8773694,0.00054,120]
[357116006,1743751844171,-1352.69839241,0.00050664,15]
[357116007,1743751844180,-100071.6515471,0.00054,120]
[357116008,1743751844196,-3723.83319058,0.00054,120]
[357116012,1743751846430,-5722.32155505,0.00054,120]
[357116013,1743751846442,-769.686283,0.00054,120]
[357116014,1743751846521,-594.46,0.00054,120]
[357116015,1743751846534,-3713.0860963,0.00054,120]
[357116016,1743751846548,-506.800618,0.00054,120]
[357116017,1743751846560,-470.22347517,0.00054,120]
[357116018,1743751846578,-131128.44595623,0.00054,120]
[357116019,1743751846590,-881.9119752,0.00054,120]
[357116020,1743751846604,-2722.7729015,0.00054,120]
[357116021,1743751846638,-4525.70161511,0.00054,120]
[357116022,1743751846647,-155.153248,0.00054,120]
[357116023,1743751846657,-500.0,0.00054089,60]
[357116024,1743751846666,-150.0,0.0005425,39]
[357116025,1743751846676,-150.34,0.0005429,120]
[357116026,1743751846686,-18396.64,0.000543,60]
[357116027,1743751846695,-203.0,0.00054432,90]
[357116028,1743751846705,-203.0,0.00054432,90]
[357116029,1743751846715,-203.0,0.00054432,90]
[357116030,1743751846723,-203.0,0.00054432,90]
[357116031,1743751846735,-203.0,0.00054432,90]
[357116032,1743751846744,-203.0,0.00054432,90]
[357116033,1743751846753,-203.0,0.00054432,90]
[357116034,1743751846764,-203.0,0.00054432,90]
[357116035,1743751846777,-203.0,0.00054432,90]
[357116036,1743751846787,-203.0,0.00054432,90]
[357116037,1743751846796,-203.0,0.00054432,90]
[357116038,1743751846805,-203.0,0.00054432,90]
[357116039,1743751846814,-203.0,0.00054432,90]
[357116040,1743751846823,-203.0,0.00054432,90]
[357116041,1743751846832,-203.0,0.00054432,90]
[357116042,1743751846841,-203.0,0.00054432,90]
[357116043,1743751846852,-203.0,0.00054432,90]
[357116044,1743751846861,-203.0,0.00054432,90]
[357116045,1743751846870,-211.0,0.00054432,90]
[357116046,1743751846880,-211.0,0.00054432,90]
[357116047,1743751846890,-211.0,0.00054432,90]
[357116048,1743751846899,-211.0,0.00054432,90]
[357116049,1743751846909,-153.0,0.00054442,90]
[357116050,1743751846919,-153.0,0.00054442,90]
[357116051,1743751846929,-153.0,0.00054442,90]
[357116052,1743751846939,-153.0,0.00054442,90]
[357116053,1743751846948,-153.0,0.00054442,90]
[357116054,1743751846958,-153.0,0.00054442,90]
[357116055,1743751846968,-153.0,0.00054442,90]
[357116056,1743751846978,-153.0,0.00054442,90]
[357116057,1743751846987,-153.0,0.00054442,90]
[357116058,1743751846997,-153.0,0.00054442,90]
[357116059,1743751847007,-153.0,0.00054442,90]
[357116060,1743751847016,-153.0,0.00054442,90]
[357116061,1743751847025,-153.0,0.00054442,90]
[357116062,1743751847035,-153.0,0.00054442,90]
[357116063,1743751847043,-153.0,0.00054442,90]
[357116065,1743751847053,-153.0,0.00054442,90]
[357116067,1743751847062,-153.0,0.00054442,90]
[357116069,1743751847071,-170.0,0.00054442,90]
[357116071,1743751847080,-170.0,0.00054442,90]
[357116073,1743751847089,-170.0,0.00054442,90]
[357116075,1743751847098,-170.0,0.00054442,90]
[357116077,1743751847107,-170.0,0.00054442,90]
[357116079,1743751847116,-170.0,0.00054442,90]
[357116081,1743751847125,-170.0,0.00054442,90]
[357116083,1743751847135,-170.0,0.00054442,90]
[357116085,1743751847144,-170.0,0.00054442,90]
[357116087,1743751847154,-170.0,0.00054442,90]
[357116089,1743751847163,-170.0,0.00054442,90]
[357116090,1743751847172,-170.0,0.00054442,90]
[357116091,1743751847182,-170.0,0.00054442,90]
[357116092,1743751847192,-170.0,0.00054442,90]
[357116093,1743751847202,-170.0,0.00054442,90]
[357116094,1743751847212,-170.0,0.00054442,90]
[357116095,1743751847223,-170.0,0.00054442,90]
[357116096,1743751847233,-170.0,0.00054442,90]
[357116097,1743751847242,-170.0,0.00054442,90]
[357116098,1743751847251,-170.0,0.00054442,90]
[357116099,1743751847261,-170.0,0.00054442,90]
[357116100,1743751847270,-170.0,0.00054442,90]
[357116101,1743751847279,-170.0,0.00054442,90]
[357116102,1743751847289,-170.0,0.00054442,90]
[357116103,1743751847298,-170.0,0.00054442,90]
[357116104,1743751847308,-181.0,0.00054442,90]
[357116105,1743751847317,-181.0,0.00054442,90]
[357116106,1743751847327,-181.0,0.00054442,90]
[357116107,1743751847337,-181.0,0.00054442,90]
[357116108,1743751847346,-181.0,0.00054442,90]
[357116109,1743751847356,-181.0,0.00054442,90]
[357116110,1743751847366,-181.0,0.00054442,90]
[357116111,1743751847375,-181.0,0.00054442,90]
[357116112,1743751847385,-181.0,0.00054442,90]
[357116113,1743751847394,-181.0,0.00054442,90]
[357116114,1743751847404,-181.0,0.00054442,90]
[357116115,1743751847414,-181.0,0.00054442,90]
[357116116,1743751847423,-181.0,0.00054442,90]
[357116117,1743751847434,-181.0,0.00054442,90]
[357116118,1743751847444,-181.0,0.00054442,90]
[357116119,1743751847453,-181.0,0.00054442,90]
[357116120,1743751847463,-181.0,0.00054442,90]
[357116121,1743751847473,-181.0,0.00054442,90]
[357116122,1743751847483,-192.0,0.00054442,90]
[357116123,1743751847493,-192.0,0.00054442,90]
[357116124,1743751847502,-192.0,0.00054442,90]
[357116125,1743751847512,-192.0,0.00054442,90]
[357116126,1743751847521,-192.0,0.00054442,90]
[357116127,1743751847531,-192.0,0.00054442,90]
[357116128,1743751847542,-192.0,0.00054442,90]
[357116129,1743751847551,-192.0,0.00054442,90]
[357116130,1743751847560,-192.0,0.00054442,90]
[357116131,1743751847570,-192.0,0.00054442,90]
[357116132,1743751847579,-192.0,0.00054442,90]
[357116133,1743751847588,-192.0,0.00054442,90]
[357116134,1743751847598,-192.0,0.00054442,90]
[357116135,1743751847607,-192.0,0.00054442,90]
[357116136,1743751847617,-192.0,0.00054442,90]
[357116137,1743751847626,-192.0,0.00054442,90]
[357116138,1743751847635,-192.0,0.00054442,90]
[357116139,1743751847644,-192.0,0.00054442,90]
[357116140,1743751847653,-166.66,0.00054454,2]
[357116141,1743751847663,-250.0,0.00054564,120]
[357116142,1743751847671,-500.0,0.00054598,60]
[357116143,1743751847681,-941.88,0.00054714,2]
[357116144,1743751847691,-151.0,0.00054795,120]
[357116145,1743751847701,-151.0,0.00054795,120]
[357116146,1743751847711,-151.0,0.00054795,120]
[357116147,1743751847721,-151.0,0.00054795,120]
[357116148,1743751847731,-169.615329,0.00054795,120]
[357116149,1743751847741,-484.78871445,0.00054795,120]
[357116150,1743751847751,-500.0,0.00054882,60]
[357116151,1743751847760,-152.4659274,0.000549,120]
[357116152,1743751847772,-150.34,0.0005499,120]
[357116153,1743751847781,-150.34,0.0005499,120]
[357116154,1743751847791,-150.34,0.0005499,120]
[357116155,1743751847801,-150.34,0.0005499,120]
[357116156,1743751847811,-150.34,0.0005499,120]
[357116157,1743751847821,-150.34,0.0005499,120]
[357116158,1743751847832,-150.34,0.0005499,120]
[357116159,1743751847841,-150.34,0.0005499,120]
[357116160,1743751847851,-150.34,0.0005499,120]
[357116161,1743751847861,-4342.39884352,0.00055,120]
[357116162,1743751847908,-44088.07906197,0.00055,120]
[357116163,1743751847921,-387.76878549,0.00055,120]
[357116164,1743751847933,-4432.66433004,0.00055,120]
[357116165,1743751847958,-379.89623438,0.00055,120]
[357116166,1743751847971,-20660.47855079,0.00055,120]
[357116167,1743751847986,-726.52366915,0.00055,120]
[357116168,1743751847999,-572.65026246,0.00055,120]
[357116169,1743751848012,-4672.00804507,0.00055,120]
[357116170,1743751848024,-16710.6,0.00055,120]
[357116171,1743751848036,-2169.16492796,0.00055,120]
[357116172,1743751848053,-335.30570427,0.00055,120]
[357116173,1743752009839,9425.16,0.000149,2]
[357116174,1743752074047,3370.42995288,0.00035621,30]
[357116175,1743752259796,153.99,0.00013699,2]
[357116176,1743752832118,-250.0,0.00027,2]
[357116177,1743752832142,-250.0,0.00047269,2]
[357116178,1743752832164,-1007.04985502,0.000498,120]
[357116179,1743752832186,-207.24869514,0.00051503,120]
[357116180,1743752832208,-376.75,0.00051602,2]
[357116181,1743752832230,-500.0,0.00051603,2]
[357116182,1743752832251,-500.0,0.00051603,2]
[357116183,1743752832272,-500.0,0.00051603,2]
[357116184,1743752832292,-547.67038301,0.00051603,2]
[357116185,1743752832314,-155.99,0.00051999,120]
[357116186,1743752832340,-300.0,0.00051999,15]
[357116187,1743752832363,-502.0,0.00052,120]
[357116188,1743752832385,-3000.0,0.000525,120]
[357116189,1743752832408,-153.0,0.00052781,90]
[357116190,1743752832431,-153.0,0.00052781,90]
[357116191,1743752832452,-153.0,0.00052781,90]
[357116192,1743752832475,-153.0,0.00052781,90]
[357116193,1743752832497,-153.0,0.00052781,90]
[357116194,1743752832520,-153.0,0.00052781,90]
[357116195,1743752832542,-153.0,0.00052781,90]
[357116196,1743752832564,-153.0,0.00052781,90]
[357116197,1743752832590,-153.0,0.00052781,90]
[357116198,1743752832611,-153.0,0.00052781,90]
[357116199,1743752832634,-153.0,0.00052781,90]
[357116200,1743752832656,-153.0,0.00052781,90]
[357116201,1743752832679,-153.0,0.00052781,90]
[357116202,1743752832702,-153.0,0.00052781,90]
[357116203,1743752832725,-153.0,0.00052781,90]
[357116204,1743752832747,-153.0,0.00052781,90]
[357116205,1743752832771,-635.29186173,0.00052999,120]
[357116206,1743752832798,-158.003,0.00052999,98]
[357116207,1743752832821,-626.124,0.00052999,98]
[357116208,1743752832848,-18126.28112165,0.00053,60]
[357116209,1743752832876,-18558.14887835,0.00053,60]
[357116210,1743752832898,-150.0,0.00053347,120]
[357116211,1743752832920,-207.24869514,0.00053352,120]
[357116212,1743752832942,-155.99,0.00053369,120]
[357116213,1743752832963,-539.77,0.00053465,2]
[357116214,1743752832985,-150.0,0.00053557,7]
[357116215,1743752833008,-166.02,0.00053709,120]
[357116216,1743752833030,-376.75,0.00053866,2]
[357116217,1743752833051,-494.03,0.00053892,2]
[357116218,1743752833072,-1094.58744436,0.000539,30]
[357116219,1743752833098,-502.0,0.00054,120]
[357116220,1743752833121,-12606.26198509,0.0005417,2]
[357116221,1743752833145,-2000.0,0.000545,2]
[357116222,1743752833167,-155.99,0.00054739,120]
[357116223,1743752833188,-462.67039582,0.0005475,120]
[357116224,1743752833213,-306.0244419,0.00054795,90]
[357116225,1743752833233,-29543.92551846,0.000548,120]
[357116226,1743752833254,-501.58752862,0.0005489,80]
[357116227,1743752833275,-8592.8641,0.000549,2]
[357116228,1743752833296,-186.43356087,0.000549,58]
[357116229,1743752833318,-4883.55,0.000549,120]
[357116230,1743752833340,-1192.62317696,0.000549,15]
[357116231,1743752833362,-1441.65475972,0.000549,26]
[357116232,1743752833383,-169.33200724,0.000549,28]
[357116233,1743752833405,-250.0,0.00054971,120]
[357116234,1743752833426,-500.0,0.00054973,15]
[357116235,1743752833446,-164.85658948,0.00054973,7]
[357116236,1743752833466,-150.38,0.0005498,120]
[357116237,1743752833487,-95250.9318972,0.0005498,4]
[357116238,1743752833509,-150.38,0.0005499,120]
[357116239,1743752833530,-80596.9423745,0.0005499,4]
[357116240,1743752833668,-1000.0,0.00054999,120]
[357116241,1743752833693,-119531.17695822,0.00055,120]
[357116256,1743753031627,-151.18,0.00026849,2]
[357116257,1743753031637,-151.18,0.00033733,2]
[357116258,1743753031646,-151.18,0.00040616,2]
[357116259,1743753031655,-151.18,0.000475,2]
[357116260,1743753031664,-433.63792807,0.000515,2]
[357116261,1743753031674,-151.18,0.00054384,120]
[357116262,1743753031683,-150.29982145,0.0005489,15]
[357116263,1743753031692,-5837.7941142,0.000549,2]
[357116264,1743753031704,-2360.78196924,0.000549,2]
[357116265,1743753031716,-3079.51141144,0.000549,2]
[357116266,1743753031728,-2501.25394069,0.000549,2]
[357116267,1743753031743,-12643.37137732,0.000549,2]
[357116274,1743753032029,-59625.16619134,0.000549,2]
[357116276,1743753032041,-6357.68798598,0.000549,2]
[357116280,1743753032068,-81263.93703562,0.000549,2]
[357116301,1743753032281,-64525.6743075,0.000549,2]
[357116402,1743753037629,-794.31,0.000549,2]
[357116403,1743753037640,-371.00973375,0.000549,2]
[357116404,1743753037651,-322.7889927,0.000549,2]
[357116405,1743753037663,-590.50635002,0.000549,2]
[357116406,1743753037685,-79855.50974809,0.000549,2]
[357116407,1743753037698,-2800.5124682,0.000549,2]
[357116418,1743753038061,-757339.87927064,0.000549,2]
[357116420,1743753038073,-10469.38537665,0.000549,2]
[357116423,1743753039962,-600.0,0.000515,2]
[357116424,1743753039972,-4094.55628202,0.000549,2]
[357116517,1743753042677,-153.0,0.00052781,90]
[357116518,1743753042687,-153.0,0.00052781,90]
[357116519,1743753042696,-728.7613594,0.000549,2]
[357116520,1743753042944,-11172.83200006,0.000549,2]
[357116521,1743753042955,-14707.71160568,0.000549,2]
[357116522,1743753042967,-1525.57746521,0.000549,2]
[357116524,1743753043109,-1376.87102119,0.000549,2]
[357116525,1743753043120,-497.06061393,0.000549,2]
[357116549,1743753045622,-500.0,0.000549,2]
[357116550,1743753045858,-847.7921997,0.000549,2]
[357116551,1743753045918,-16766.8648986,0.000549,2]
[357116558,1743753280411,153.9,0.00013699,2]
[357116559,1743754146104,-150.0,0.00044,57]
[357116560,1743754146126,-1000.0,0.00045,120]
[357116561,1743754146146,-300.0,0.00046,120]
[357116562,1743754146168,-151.0,0.00047209,5]
[357116563,1743754146190,-571.00551242,0.0005149,120]
[357116564,1743754146213,-1000.0,0.000515,2]
[357116565,1743754146236,-155.43652137,0.00052725,120]
[357116566,1743754146258,-153.0,0.00052825,90]
[357116567,1743754146280,-153.0,0.00052825,90]
[357116568,1743754146301,-153.0,0.00052825,90]
[357116569,1743754146323,-153.0,0.00052825,90]
[357116570,1743754146345,-153.0,0.00052825,90]
[357116571,1743754146366,-153.0,0.00052825,90]
[357116572,1743754146387,-153.0,0.00052825,90]
[357116573,1743754146409,-153.0,0.00052825,90]
[357116574,1743754146430,-153.0,0.00052825,90]
[357116575,1743754146451,-153.0,0.00052825,90]
[357116576,1743754146473,-153.0,0.00052825,90]
[357116577,1743754146495,-153.0,0.00052825,90]
[357116578,1743754146519,-153.0,0.00052825,90]
[357116579,1743754146539,-153.0,0.00052825,90]
[357116580,1743754146560,-164.0,0.00052825,90]
[357116581,1743754146582,-164.0,0.00052825,90]
[357116582,1743754146605,-164.0,0.00052825,90]
[357116583,1743754146625,-164.0,0.00052825,90]
[357116584,1743754146645,-164.0,0.00052825,90]
[357116585,1743754146666,-164.0,0.00052825,90]
[357116586,1743754146687,-164.0,0.00052825,90]
[357116587,1743754146708,-164.0,0.00052825,90]
[357116588,1743754146732,-164.0,0.00052825,90]
[357116589,1743754146755,-164.0,0.00052825,90]
[357116590,1743754146775,-164.0,0.00052825,90]
[357116591,1743754146797,-164.0,0.00052825,90]
[357116592,1743754146818,-164.0,0.00052825,90]
[357116593,1743754146841,-153.0,0.00052825,90]
[357116594,1743754146862,-153.0,0.00052825,90]
[357116595,1743754146882,-153.0,0.00052825,90]
[357116596,1743754146902,-153.0,0.00052825,90]
[357116597,1743754146923,-153.0,0.00052825,90]
[357116598,1743754146943,-153.0,0.00052825,90]
[357116599,1743754146963,-153.0,0.00052825,90]
[357116600,1743754146986,-153.0,0.00052825,90]
[357116601,1743754147008,-153.0,0.00052825,90]
[357116602,1743754147029,-153.0,0.00052825,90]
[357116603,1743754147050,-153.0,0.00052825,90]
[357116604,1743754147070,-153.0,0.00052825,90]
[357116605,1743754147090,-153.0,0.00052825,90]
[357116606,1743754147112,-153.0,0.00052825,90]
[357116607,1743754147132,-153.0,0.00052825,90]
[357116608,1743754147153,-153.0,0.00052825,90]
[357116609,1743754147316,-153.0,0.00052825,90]
[357116610,1743754147338,-153.0,0.00052825,90]
[357116611,1743754147360,-153.0,0.00052825,90]
[357116612,1743754147382,-153.0,0.00052825,90]
[357116613,1743754147403,-153.0,0.00052825,90]
[357116614,1743754147425,-153.0,0.00052825,90]
[357116615,1743754147446,-153.0,0.00052825,90]
[357116616,1743754147468,-153.0,0.00052825,90]
[357116617,1743754147489,-153.0,0.00052825,90]
[357116618,1743754147511,-153.0,0.00052825,90]
[357116619,1743754147535,-153.0,0.00052825,90]
[357116620,1743754147556,-153.0,0.00052825,90]
[357116621,1743754147578,-153.0,0.00052825,90]
[357116622,1743754147600,-153.0,0.00052825,90]
[357116623,1743754147622,-153.0,0.00052825,90]
[357116624,1743754147643,-153.0,0.00052825,90]
[357116625,1743754147665,-153.0,0.00052825,90]
[357116626,1743754147686,-153.0,0.00052825,90]
[357116627,1743754147708,-153.0,0.00052825,90]
[357116628,1743754147730,-153.0,0.00052825,90]
[357116629,1743754147756,-153.0,0.00052825,90]
[357116630,1743754147777,-153.0,0.00052825,90]
[357116631,1743754147798,-153.0,0.00052825,90]
[357116632,1743754147821,-153.0,0.00052825,90]
[357116633,1743754147842,-153.0,0.00052825,90]
[357116634,1743754147862,-153.0,0.00052825,90]
[357116635,1743754147883,-153.0,0.00052825,90]
[357116636,1743754147904,-153.0,0.00052825,90]
[357116637,1743754147925,-153.0,0.00052825,90]
[357116638,1743754147948,-153.0,0.00052825,90]
[357116639,1743754147972,-153.0,0.00052825,90]
[357116640,1743754147999,-153.0,0.00052825,90]
[357116641,1743754148028,-153.0,0.00052825,90]
[357116642,1743754148049,-153.0,0.00052825,90]
[357116643,1743754148070,-153.0,0.00052825,90]
[357116644,1743754148090,-153.0,0.00052825,90]
[357116645,1743754148111,-153.0,0.00052825,90]
[357116646,1743754148133,-153.0,0.00052825,90]
[357116647,1743754148154,-153.0,0.00052825,90]
[357116648,1743754148175,-153.0,0.00052825,90]
[357116649,1743754148196,-153.0,0.00052825,90]
[357116650,1743754148216,-153.0,0.00052825,90]
[357116651,1743754148238,-153.0,0.00052825,90]
[357116652,1743754148261,-153.0,0.00052825,90]
[357116653,1743754148295,-153.0,0.00052825,90]
[357116654,1743754148329,-153.0,0.00052825,90]
[357116655,1743754148350,-153.0,0.00052825,90]
[357116656,1743754148372,-153.0,0.00052825,90]
[357116657,1743754148393,-153.0,0.00052825,90]
[357116658,1743754148416,-153.0,0.00052825,90]
[357116659,1743754148441,-153.0,0.00052825,90]
[357116660,1743754148467,-153.0,0.00052825,90]
[357116661,1743754148494,-153.0,0.00052825,90]
[357116662,1743754148524,-153.0,0.00052825,90]
[357116663,1743754148549,-153.0,0.00052825,90]
[357116664,1743754148573,-153.0,0.00052825,90]
[357116665,1743754148594,-153.0,0.00052825,90]
[357116666,1743754148613,-2100.0,0.00053,15]
[357116667,1743754148633,-23900.0,0.00053378,2]
[357116668,1743754148656,-250.0,0.00053435,120]
[357116669,1743754148676,-195.46,0.00053443,5]
[357116670,1743754148698,-1000.0,0.00053542,120]
[357116671,1743754148721,-540.0,0.00053544,30]
[357116672,1743754148744,-150.0,0.000536,7]
[357116673,1743754148764,-150.0,0.00053629,120]
[357116674,1743754148785,-449.8,0.00053704,2]
[357116675,1743754148805,-158.44,0.00053753,2]
[357116676,1743754148825,-217.69455857,0.000539,120]
[357116677,1743754148846,-166.02,0.00053913,120]
[357116678,1743754148867,-395.22,0.00053989,2]
[357116679,1743754148888,-540.0,0.00054096,30]
[357116680,1743754148909,-1000.0,0.000542,2]
[357116681,1743754148929,-536.0,0.000545,120]
[357116682,1743754148949,-3537.59805254,0.000545,120]
[357116683,1743754148969,-540.0,0.00054648,30]
[357116684,1743754148990,-155.43652135,0.00054783,120]
[357116685,1743754149011,-3263.31749375,0.000548,2]
[357116686,1743754149236,-150.0,0.00052825,90]
[357116687,1743754149258,-2182.08180625,0.000548,2]
[357116688,1743754149280,-5672.80446775,0.000548,120]
[357116689,1743754150109,-3271.74595383,0.000548,120]
[357116690,1743754166090,-81060.87536317,0.000548,120]
[357116691,1743754166113,-1345.54444248,0.000548,26]
[357116692,1743754166136,-1073.36085921,0.000548,15]
[357116693,1743754166158,-150.0,0.000548,2]
[357116694,1743754166181,-1178.6189734,0.0005488,120]
[357116695,1743754166204,-500.899,0.0005488,104]
[357116696,1743754166226,-500.0,0.0005489,120]
[357116697,1743754166247,-150.39,0.0005489,120]
[357116698,1743754166271,-27047.42376174,0.0005489,4]
[357116699,1743754166304,-4414.61482,0.0005489,4]
[357116700,1743754208472,163.713764,7.945e-05,2]
[357116732,1743754231915,-153.0,0.00052825,90]
[357116733,1743754231925,-153.0,0.00052825,90]
[357116734,1743754231935,-153.0,0.00052825,90]
[357116735,1743754231944,-153.0,0.00052825,90]
[357116736,1743754231953,-153.0,0.00052825,90]
[357116737,1743754231963,-153.0,0.00052825,90]
[357116738,1743754231973,-153.0,0.00052825,90]
[357116739,1743754231982,-153.0,0.00052825,90]
[357116740,1743754231992,-153.0,0.00052825,90]
[357116741,1743754232002,-153.0,0.00052825,90]
[357116742,1743754232011,-153.0,0.00052825,90]
[357116743,1743754232021,-153.0,0.00052825,90]
[357116744,1743754232031,-153.0,0.00052825,90]
[357116745,1743754232040,-153.0,0.00052825,90]
[357116746,1743754232050,-153.0,0.00052825,90]
[357116747,1743754232060,-153.0,0.00052825,90]
[357116748,1743754232071,-153.0,0.00052825,90]
[357116749,1743754232081,-153.0,0.00052825,90]
[357116750,1743754232091,-153.0,0.00052825,90]
[357116751,1743754232101,-153.0,0.00052825,90]
[357116752,1743754232110,-153.0,0.00052825,90]
[357116753,1743754232123,-153.0,0.00052825,90]
[357116754,1743754232133,-153.0,0.00052825,90]
[357116755,1743754232144,-153.0,0.00052825,90]
[357116756,1743754232154,-153.0,0.00052825,90]
[357116757,1743754232164,-153.0,0.00052825,90]
[357116758,1743754232174,-153.0,0.00052825,90]
[357116759,1743754232184,-153.0,0.00052825,90]
[357116760,1743754232194,-153.0,0.00052825,90]
[357116761,1743754232205,-153.0,0.00052825,90]
[357116762,1743754232215,-153.0,0.00052825,90]
[357116763,1743754232406,-3000.0,0.000545,120]
[357116764,1743754232416,-150.29982137,0.0005479,15]
[357116765,1743754232426,-13836.01933964,0.0005489,4]
[357116766,1743754236240,-5145.6302333,0.0005489,4]
[357116861,1743754237604,-2071.78561076,0.0005489,4]
[357116863,1743754237659,-332.99057143,0.0005489,4]
[357116865,1743754237883,-43913.4271943,0.0005489,4]
[357116866,1743754237895,-19028.30569064,0.0005489,4]
[357116867,1743754237906,-461.56918118,0.0005489,4]
[357116903,1743754240066,-24000.06504966,0.0005489,4]
[357116922,1743754241902,-0.00768211,0.0005489,4]
[357116923,1743754241914,-85015.17992124,0.0005489,4]
[357116924,1743754241924,-91687.6625537,0.0005489,4]
[357116925,1743754241935,-150.39,0.0005489,120]
[357116926,1743754241947,-68991.10964063,0.000549,2]
[357116979,1743754243589,-7488.72255,0.000549,2]
[357116980,1743754243607,-22242.8124517,0.000549,2]
[357116992,1743754245871,-330.64150822,0.00054889,120]
[357116993,1743754245979,-19.19859097,0.00054889,120]
[357116994,1743754245988,-50443.64561421,0.000549,2]
[357116999,1743755027311,281.0,0.00032,120]
[357117000,1743755062921,200.0,0.00032,120]
[357117001,1743755090170,200.0,0.00032,120]
[357117002,1743755128489,844.77061303,0.00011,2]
[357117018,1743755137421,1869.04046924,8e-05,2]
[357117190,1743755155284,99863.3214742,0.00035742,30]
[357117217,1743755227919,187.528197,7.945e-05,2]
[357117218,1743755242031,5143.83028397,0.0001305,2]
[357117219,1743755275875,4260.03941123,0.00013,2]
[357117220,1743755297070,9918.57037821,0.0001439,2]
[357117221,1743755300194,1000.0,0.000135,2]
[357117222,1743755300296,296.00715452,0.000125,2]
[357117223,1743755309169,3989.16568001,0.00014,2]
[357117224,1743755318180,424.31726255,0.000149,2]
[357117225,1743755323316,834.09275663,0.0001421,7]
[357117231,1743755327986,48478.09145739,0.00013368,2]
[357117267,1743755349110,-294.87421659,0.0001999,2]